bitfinex/quotes_BTCUSD_20241206
["timestamp","ask_amount","ask_price","bid_price","bid_amount"]
[1733476989134,0.07884965,98360.0,98359.0,0.00616921]
[1733476989338,0.28218365,98360.0,98359.0,0.003]
[1733476989540,0.07884965,98360.0,98359.0,0.003]
[1733476992187,0.07884965,98360.0,98359.0,0.00611968]
[1733476992384,0.07884965,98360.0,98359.0,0.003]
[1733476992591,0.07884965,98360.0,98359.0,0.00611968]
[1733476999222,0.0456,98370.0,98359.0,0.00611968]
[1733476999223,0.0456,98370.0,98360.0,0.203334]
[1733476999425,0.0456,98370.0,98366.0,0.20332]
[1733476999629,0.0456,98370.0,98367.0,0.00311968]
[1733476999834,0.0456,98370.0,98368.0,0.203318]
[1733477000056,0.02078457,98376.0,98369.0,0.00311968]
[1733477000324,0.02078457,98376.0,98373.0,0.203306]
[1733477000487,0.0516298,98380.0,98373.0,0.203306]
[1733477000765,0.0516298,98380.0,98375.0,0.203303]
[1733477001292,0.02015632,98378.0,98376.0,0.00307779]
[1733477001492,0.02015632,98378.0,98377.0,0.203299]
[1733477001920,0.02015632,98378.0,98377.0,0.20637679]
[1733477002526,0.02015632,98378.0,98377.0,0.00307779]
[1733477002724,0.02015632,98378.0,98377.0,0.001]
[1733477002971,0.02015632,98378.0,98377.0,0.00407779]
[1733477003199,0.02015632,98378.0,98377.0,0.001]
[1733477003327,0.02015632,98378.0,98377.0,0.00407779]
[1733477003693,0.02015632,98378.0,98377.0,0.003]
[1733477004004,0.02015632,98378.0,98377.0,0.00607779]
[1733477004204,0.02015632,98378.0,98377.0,0.003]
[1733477004436,0.02015632,98378.0,98377.0,0.00607779]
[1733477004652,0.02015632,98378.0,98377.0,0.003]
[1733477004869,0.0516298,98380.0,98377.0,0.00607779]
[1733477005084,0.0516298,98380.0,98378.0,0.203297]
[1733477005502,0.0017298,98380.0,98378.0,0.203297]
[1733477005675,0.0017298,98380.0,98379.0,0.00307779]
[1733477006885,0.0017298,98380.0,98379.0,0.15307779]
[1733477007294,0.0017298,98380.0,98379.0,0.15409419]
[1733477007719,0.0017298,98380.0,98379.0,0.15509419]
[1733477008331,0.0017298,98380.0,98379.0,0.15507779]
[1733477009833,0.0017298,98380.0,98379.0,0.15609416]
[1733477013325,0.0017298,98380.0,98379.0,0.2611257]
[1733477013528,0.0017298,98380.0,98379.0,0.41540933]
[1733477013765,0.0017298,98390.0,98386.0,0.40656]
[1733477013997,0.0017298,98390.0,98389.0,0.15]
[1733477014262,0.0822,98412.0,98411.0,0.203229]
[1733477014709,0.10300987,98412.0,98411.0,0.20626568]
[1733477014939,0.0017292,98420.0,98411.0,0.20626568]
[1733477015189,0.0833,98418.0,98411.0,0.40949468]
[1733477015436,0.0833,98418.0,98416.0,0.203218]
[1733477015734,0.08347431,98418.0,98416.0,0.203218]
[1733477016188,0.08347431,98418.0,98417.0,0.00303668]
[1733477017176,0.08347431,98418.0,98399.0,0.15]
[1733477017422,0.08347431,98418.0,98417.0,0.00303668]
[1733477017654,0.08347431,98418.0,98415.0,0.203219]
[1733477017910,0.08347431,98418.0,98417.0,0.00303668]
[1733477018168,0.08347431,98418.0,98416.0,0.00303668]
[1733477018426,0.08347431,98418.0,98414.0,0.203223]
[1733477018674,0.08347431,98418.0,98417.0,0.00303668]
[1733477018924,0.08347431,98418.0,98414.0,0.203223]
[1733477019168,0.08347431,98418.0,98416.0,0.203218]
[1733477019410,0.08347431,98418.0,98415.0,0.00303668]
[1733477019655,0.08347431,98418.0,98411.0,0.203228]
[1733477019905,0.08347431,98418.0,98416.0,0.00303668]
[1733477020140,0.08347431,98418.0,98412.0,0.203226]
[1733477020379,0.08347431,98418.0,98406.0,0.203237]
[1733477020633,0.08347431,98418.0,98413.0,0.00303668]
[1733477020845,0.28669031,98418.0,98406.0,0.203237]
[1733477021066,0.28669031,98418.0,98411.0,0.001]
[1733477021712,0.28669031,98418.0,98412.0,0.00303668]
[1733477022197,0.203225,98413.0,98412.0,0.00303668]
[1733477022629,0.203216,98417.0,98406.0,0.002]
[1733477022863,0.203225,98413.0,98406.0,0.002]
[1733477023122,0.203225,98413.0,98407.0,0.00303668]
[1733477023384,0.203216,98417.0,98412.0,0.001]
[1733477023600,0.203218,98416.0,98412.0,0.001]
[1733477023822,0.203226,98413.0,98401.0,0.15]
[1733477024045,0.203226,98413.0,98406.0,0.002]
[1733477024529,0.203218,98416.0,98406.0,0.002]
[1733477024745,0.203218,98416.0,98407.0,0.00301397]
[1733477024964,0.203221,98415.0,98407.0,0.00301397]
[1733477025683,0.203221,98415.0,98412.0,0.001]
[1733477026155,0.203221,98415.0,98406.0,0.001]
[1733477026407,0.203221,98415.0,98413.0,0.00301397]
[1733477026655,0.08347431,98418.0,98407.0,0.002]
[1733477026656,0.203223,98414.0,98407.0,0.002]
[1733477026875,0.203225,98413.0,98407.0,0.002]
[1733477027156,0.203216,98417.0,98403.0,0.15]
[1733477027383,0.203218,98416.0,98407.0,0.001]
[1733477027618,0.20323,98411.0,98407.0,0.001]
[1733477027882,0.203237,98407.0,98406.0,0.002]
[1733477028111,0.38666854,98407.0,98406.0,0.002]
[1733477028334,0.43176854,98407.0,98406.0,0.002]
[1733477028559,0.1235,98407.0,98377.0,0.09070445]
[1733477028797,0.1235,98407.0,98382.0,0.203288]
[1733477028798,0.203247,98403.0,98382.0,0.203288]
[1733477029067,0.203247,98402.0,98385.0,0.09070445]
[1733477029325,0.406495,98402.0,98384.0,0.29398845]
[1733477029559,0.1235,98407.0,98385.0,0.00101631]
[1733477029807,0.326737,98407.0,98406.0,0.001]
[1733477030267,0.203249,98402.0,98387.0,0.203278]
[1733477030737,0.06589799,98407.0,98385.0,0.002]
[1733477030985,0.203264,98395.0,98385.0,0.002]
[1733477031223,0.0754,98401.0,98385.0,0.002]
[1733477031224,0.203256,98399.0,98385.0,0.002]
[1733477031457,0.203271,98391.0,98387.0,0.001]
[1733477031936,0.203271,98391.0,98379.0,0.15]
[1733477032162,0.203271,98391.0,98385.0,0.001]
[1733477032398,0.203264,98394.0,98385.0,0.001]
[1733477032628,0.203273,98390.0,98385.0,0.001]
[1733477032866,0.203273,98390.0,98387.0,0.002]
[1733477033095,0.406546,98390.0,98387.0,0.002]
[1733477033335,0.406546,98390.0,98372.0,0.18169043]
[1733477033336,0.20328,98386.0,98371.0,0.24084521]
[1733477033612,0.20328,98386.0,98385.0,0.002]
[1733477034775,0.20345421,98386.0,98385.0,0.002]
[1733477035078,0.20345421,98386.0,98385.0,0.001]
[1733477036077,0.00017421,98386.0,98385.0,0.003]
[1733477036589,0.00017421,98386.0,98385.0,0.00542795]
[1733477037775,0.20345421,98386.0,98385.0,0.003]
[1733477038019,0.00017421,98386.0,98385.0,0.003]
[1733477038916,0.00017421,98386.0,98385.0,0.00543638]
[1733477040392,0.00017421,98386.0,98385.0,0.003]
[1733477041915,0.00017421,98386.0,98385.0,0.00604548]
[1733477042140,0.00017421,98386.0,98385.0,0.003]
[1733477042315,0.00017421,98386.0,98385.0,0.00604548]
[1733477042582,0.00017421,98386.0,98385.0,0.003]
[1733477042788,0.00017421,98386.0,98385.0,0.00604548]
[1733477042983,0.00017421,98386.0,98385.0,0.003]
[1733477043260,0.00017421,98386.0,98385.0,0.00605425]
[1733477043414,0.00017421,98386.0,98385.0,0.003]
[1733477043646,0.00017421,98386.0,98385.0,0.00605425]
[1733477043805,0.00017421,98386.0,98385.0,0.003]
[1733477044005,0.00017421,98386.0,98385.0,0.00605257]
[1733477044255,0.00017421,98386.0,98385.0,0.003]
[1733477044454,0.00017421,98386.0,98385.0,0.00605257]
[1733477044656,0.00017421,98386.0,98385.0,0.003]
[1733477044856,0.00017421,98386.0,98385.0,0.00605203]
[1733477045058,0.00017421,98386.0,98385.0,0.003]
[1733477045233,0.00017421,98386.0,98385.0,0.00605203]
[1733477045430,0.00017421,98386.0,98385.0,0.003]
[1733477045631,0.00017421,98386.0,98385.0,0.00605203]
[1733477045829,0.00017421,98386.0,98385.0,0.003]
[1733477046232,0.20345421,98386.0,98385.0,0.003]
[1733477046485,0.33205421,98386.0,98385.0,0.00605203]
[1733477046681,0.33205421,98386.0,98385.0,0.003]
[1733477046807,0.12877421,98386.0,98385.0,0.00605203]
[1733477047011,0.00017421,98386.0,98385.0,0.003]
[1733477047214,0.00017421,98386.0,98385.0,0.00605203]
[1733477047415,0.00017421,98386.0,98385.0,0.003]
[1733477047635,0.00017421,98386.0,98385.0,0.00605339]
[1733477047837,0.00017421,98386.0,98385.0,0.003]
[1733477048059,0.00017421,98386.0,98385.0,0.00605339]
[1733477048220,0.00017421,98386.0,98385.0,0.003]
[1733477048419,0.00017421,98386.0,98385.0,0.00605339]
[1733477048698,0.00017421,98386.0,98385.0,0.003]
[1733477048873,0.20345421,98386.0,98385.0,0.00605339]
[1733477049615,0.20345421,98386.0,98385.0,0.003]
[1733477049819,0.20345421,98386.0,98385.0,0.001]
[1733477050203,0.20345421,98386.0,98380.0,0.0008636]
[1733477050744,0.20345421,98386.0,98385.0,0.001]
[1733477051077,0.20345421,98386.0,98385.0,0.003]
[1733477051286,0.20345421,98386.0,98385.0,0.002]
[1733477053371,0.00017421,98386.0,98385.0,0.003]
[1733477053572,0.00017421,98386.0,98385.0,0.00544293]
[1733477054393,0.19844721,98390.0,98385.0,0.00544293]
[1733477054592,0.19844721,98390.0,98385.0,0.00561714]
[1733477054803,0.20328,98387.0,98385.0,0.00317421]
[1733477055388,0.20328,98387.0,98385.0,0.00117421]
[1733477055619,0.10167372,98392.0,98385.0,0.00317421]
[1733477056050,0.20327,98391.0,98385.0,0.00017421]
[1733477056224,0.203278,98388.0,98386.0,0.00244293]
[1733477056649,0.203278,98388.0,98385.0,0.00317421]
[1733477056650,0.203273,98390.0,98385.0,0.00217421]
[1733477056931,0.203273,98390.0,98385.0,0.00317421]
[1733477057224,0.203273,98390.0,98386.0,0.00244293]
[1733477057544,0.203273,98390.0,98386.0,0.00344293]
[1733477057732,0.406547,98390.0,98386.0,0.00344293]
[1733477057899,0.406547,98390.0,98386.0,0.00244293]
[1733477058101,0.203273,98390.0,98385.0,0.00217421]
[1733477058483,0.203273,98390.0,98386.0,0.00244061]
[1733477059125,0.203273,98390.0,98386.0,0.00344061]
[1733477059854,0.203273,98390.0,98386.0,0.00444061]
[1733477060010,0.10167372,98392.0,98386.0,0.00444061]
[1733477060011,0.203275,98389.0,98386.0,0.00444061]
[1733477060821,0.203275,98389.0,98386.0,0.00344061]
[1733477061842,0.203275,98389.0,98386.0,0.001]
[1733477062241,0.40655,98389.0,98386.0,0.001]
[1733477062444,0.40655,98389.0,98386.0,0.002]
[1733477062652,0.203278,98387.0,98386.0,0.002]
[1733477062846,0.44758005,98387.0,98386.0,0.002]
[1733477063828,0.36708005,98387.0,98385.0,0.00017421]
[1733477064030,0.33110205,98386.0,98385.0,0.00017421]
[1733477064254,1.01424747,98386.0,98385.0,0.00017421]
[1733477064454,0.99910205,98386.0,98385.0,0.00017421]
[1733477064690,1.01423919,98386.0,98385.0,0.00017421]
[1733477065990,0.99910205,98386.0,98385.0,0.00017421]
[1733477066984,1.01422927,98386.0,98385.0,0.00017421]
[1733477067186,0.99910205,98386.0,98385.0,0.00017421]
[1733477067992,1.01422522,98386.0,98385.0,0.00017421]
[1733477068195,1.06422522,98386.0,98385.0,2.1e-07]
[1733477068531,1.28174489,98386.0,98385.0,1.00000021]
[1733477068742,1.28174489,98386.0,98385.0,0.89836021]
[1733477069082,1.28174489,98386.0,98385.0,0.90070243]
[1733477069494,1.28174489,98386.0,98385.0,0.88037443]
[1733477070348,1.26422522,98386.0,98385.0,0.88037443]
[1733477070550,1.26422522,98386.0,98385.0,0.88095998]
[1733477070551,1.26418409,98386.0,98385.0,0.88095998]
[1733477071847,1.24907483,98386.0,98385.0,0.88095998]
[1733477072258,1.26418602,98386.0,98385.0,0.88095998]
[1733477072492,1.21418602,98386.0,98385.0,0.88095998]
[1733477073051,1.26418602,98386.0,98385.0,0.88095998]
[1733477073265,1.36908094,98386.0,98385.0,0.88095998]
[1733477073664,1.44602646,98386.0,98385.0,0.88095998]
[1733477073867,1.47057811,98386.0,98385.0,0.88095998]
[1733477074912,1.36568319,98386.0,98385.0,0.88095998]
[1733477075114,1.35057448,98386.0,98385.0,0.88095998]
[1733477075351,1.34113154,98386.0,98385.0,0.88095998]
[1733477076025,1.34113154,98386.0,98385.0,0.77906395]
[1733477076289,2.5558248,98386.0,98385.0,0.70414555]
[1733477076445,2.5558248,98386.0,98385.0,0.41663355]
[1733477076666,2.68330234,98386.0,98385.0,0.39337778]
[1733477077191,2.68330234,98386.0,98385.0,0.38108472]
[1733477077395,2.89220234,98386.0,98385.0,0.15134172]
[1733477077772,0.753291,98381.0,98380.0,0.0008636]
[1733477077969,5.46433644,98381.0,98380.0,0.0008636]
[1733477078405,5.48691906,98381.0,98380.0,6e-07]
[1733477078721,5.52011906,98381.0,98380.0,6e-07]
[1733477079268,5.55098575,98381.0,98380.0,6e-07]
[1733477079462,0.553332,98361.0,98360.0,0.000864]
[1733477079658,5.17778252,98361.0,98360.0,0.000864]
[1733477080679,5.20888252,98361.0,98360.0,0.000864]
[1733477080882,5.21588252,98361.0,98360.0,0.000864]
[1733477081283,5.22531007,98361.0,98360.0,0.000864]
[1733477081922,5.25457491,98361.0,98360.0,0.000864]
[1733477084178,0.503353,98351.0,98350.0,0.000864]
[1733477084350,0.65838454,98351.0,98350.0,0.000864]
[1733477084558,0.66779237,98351.0,98350.0,0.000864]
[1733477084985,0.72179237,98351.0,98350.0,1e-06]
[1733477085143,1.21328729,98351.0,98350.0,1e-06]
[1733477085371,1.21328729,98351.0,98350.0,5e-08]
[1733477085564,1.22833311,98351.0,98350.0,5e-08]
[1733477085797,1.21528729,98351.0,98350.0,5e-08]
[1733477086010,1.43723251,98351.0,98350.0,5e-08]
[1733477086277,1.45786325,98351.0,98350.0,5e-08]
[1733477086441,1.46286325,98351.0,98350.0,5e-08]
[1733477086627,1.44858989,98351.0,98350.0,5e-08]
[1733477086825,1.46915891,98351.0,98350.0,5e-08]
[1733477087460,1.47115891,98351.0,98350.0,5e-08]
[1733477087630,1.49422054,98351.0,98350.0,5e-08]
[1733477088075,1.51878744,98351.0,98350.0,5e-08]
[1733477089078,1.49422054,98351.0,98350.0,5e-08]
[1733477089521,0.3,98321.0,98320.0,3.5e-07]
[1733477089725,0.3,98321.0,98320.0,7e-07]
[1733477089726,4.01469706,98321.0,98320.0,7e-07]
[1733477089931,4.04719802,98321.0,98320.0,6e-07]
[1733477090135,4.04719802,98321.0,98301.0,0.0465]
[1733477090136,0.35,98306.0,98301.0,0.0465]
[1733477090308,0.253456,98301.0,98293.0,0.08]
[1733477090513,0.253456,98301.0,98300.0,0.00103928]
[1733477090514,1.39699594,98301.0,98300.0,0.00103928]
[1733477090711,1.44441177,98301.0,98300.0,0.00103928]
[1733477090997,1.39699594,98301.0,98300.0,0.00103928]
[1733477092382,1.35199594,98301.0,98300.0,0.00203928]
[1733477092609,1.32658754,98301.0,98300.0,0.00203928]
[1733477092838,1.32758754,98301.0,98300.0,0.00203928]
[1733477095905,1.12413154,98301.0,98300.0,0.08443928]
[1733477096019,1.02263154,98301.0,98300.0,0.08443928]
[1733477096851,1.04208019,98301.0,98300.0,0.08443928]
[1733477097048,1.04208019,98301.0,98300.0,0.08543928]
[1733477097662,1.04208019,98301.0,98300.0,0.08443928]
[1733477097921,1.03708019,98301.0,98300.0,0.08343928]
[1733477098969,1.03708019,98301.0,98300.0,0.08443928]
[1733477099333,1.03708019,98301.0,98300.0,0.08543928]
[1733477099540,1.03708019,98301.0,98300.0,0.13668527]
[1733477099757,1.01663154,98301.0,98300.0,0.13768527]
[1733477099949,0.9116,98301.0,98300.0,0.13768527]
[1733477100476,0.9116,98301.0,98300.0,0.13668527]
[1733477100832,0.9116,98301.0,98300.0,0.13868527]
[1733477101235,0.9116,98301.0,98300.0,0.13768527]
[1733477101749,0.9116,98301.0,98300.0,0.14068527]
[1733477101952,0.9116,98301.0,98300.0,0.13768527]
[1733477101953,0.758,98301.0,98300.0,0.13768527]
[1733477102181,0.758,98301.0,98300.0,0.13568527]
[1733477102394,0.758,98301.0,98300.0,0.13666477]
[1733477102570,0.758,98301.0,98300.0,0.13966477]
[1733477102976,0.758,98301.0,98300.0,0.13666477]
[1733477103403,0.758,98301.0,98300.0,0.13926721]
[1733477103605,0.758,98301.0,98300.0,0.13828584]
[1733477103812,0.758,98301.0,98300.0,0.13528584]
[1733477104314,0.203408,98325.0,98300.0,0.13528584]
[1733477104315,0.3,98331.0,98320.0,0.203417]
[1733477104573,2.21318206,98321.0,98320.0,0.331617]
[1733477104771,2.31468206,98321.0,98320.0,0.331617]
[1733477105278,2.21318206,98321.0,98320.0,0.331617]
[1733477105509,0.758,98324.0,98321.0,0.203414]
[1733477105717,0.758,98324.0,98323.0,0.203411]
[1733477105909,0.447,98324.0,98323.0,0.279511]
[1733477106119,0.447,98324.0,98323.0,0.327011]
[1733477106323,0.447,98324.0,98323.0,0.32994413]
[1733477107093,0.447,98324.0,98323.0,0.33092184]
[1733477107292,0.447,98324.0,98323.0,0.33292184]
[1733477108098,0.447,98324.0,98323.0,0.33492184]
[1733477108310,0.447,98324.0,98323.0,0.33392797]
[1733477108516,0.447,98324.0,98323.0,0.33192797]
[1733477108932,0.447,98324.0,98323.0,0.33392797]
[1733477109138,0.1015,98339.0,98338.0,0.25308]
[1733477109382,0.20653154,98339.0,98338.0,0.33768871]
[1733477109984,0.1015,98339.0,98338.0,0.33768871]
[1733477110182,0.77693744,98352.0,98351.0,0.285053]
[1733477110397,0.88196898,98352.0,98351.0,0.285053]
[1733477110677,0.88196898,98352.0,98351.0,0.33642002]
[1733477110678,0.7771116,98352.0,98351.0,0.33642002]
[1733477110958,0.79748905,98352.0,98351.0,0.333553]
[1733477111306,0.80348905,98352.0,98351.0,0.13406702]
[1733477111722,0.79748905,98352.0,98351.0,0.1302]
[1733477112185,1.00084005,98352.0,98351.0,0.13406702]
[1733477112403,1.00084005,98352.0,98335.0,0.1247]
[1733477112404,0.203365,98346.0,98335.0,0.1247]
[1733477112616,0.10503154,98345.0,98336.0,0.203384]
[1733477112839,0.10503154,98345.0,98337.0,0.406764]
[1733477113038,0.79748905,98352.0,98343.0,0.203369]
[1733477113264,0.10503154,98351.0,98344.0,0.0773]
[1733477113487,0.10503154,98351.0,98348.0,0.203357]
[1733477113916,0.10503154,98351.0,98344.0,0.280666]
[1733477114149,0.10503154,98351.0,98344.0,0.0773]
[1733477114624,0.203357,98349.0,98344.0,0.0773]
[1733477114886,0.10503154,98348.0,98344.0,0.0773]
[1733477115110,0.203361,98347.0,98344.0,0.0773]
[1733477115368,0.203365,98345.0,98344.0,0.0773]
[1733477115611,0.30839654,98345.0,98344.0,0.0793]
[1733477116125,0.30839654,98345.0,98344.0,0.0813]
[1733477116352,0.9929538,98345.0,98344.0,0.0813]
[1733477116558,1.37473183,98345.0,98344.0,0.002]
[1733477117393,0.20339,98334.0,98325.0,0.0803]
[1733477117590,0.10503154,98333.0,98325.0,0.0803]
[1733477117822,0.203392,98332.0,98325.0,0.0803]
[1733477118065,0.10503154,98331.0,98325.0,0.0803]
[1733477118684,0.203396,98330.0,98325.0,0.0803]
[1733477118892,0.10503154,98329.0,98325.0,0.0843]
[1733477119114,0.10503154,98329.0,98325.0,0.0823]
[1733477119535,0.10503154,98329.0,98326.0,0.00286702]
[1733477119996,0.10503154,98329.0,98325.0,0.0843]
[1733477120643,0.10503154,98329.0,98326.0,0.00286702]
[1733477120859,0.2034,98328.0,98326.0,0.00286702]
[1733477121074,0.2034,98328.0,98325.0,0.0823]
[1733477121075,0.203404,98326.0,98325.0,0.002]
[1733477121279,0.30843554,98326.0,98325.0,0.004]
[1733477121504,0.30843554,98326.0,98325.0,0.006]
[1733477121948,0.203407,98325.0,98322.0,0.0461]
[1733477122169,0.203411,98323.0,98322.0,0.0461]
[1733477122383,0.30844254,98323.0,98322.0,0.0461]
[1733477123667,0.203421,98318.0,98317.0,0.0825]
[1733477123910,0.30845254,98318.0,98317.0,0.0825]
[1733477124940,0.30845254,98318.0,98317.0,0.08267438]
[1733477125211,0.30945254,98318.0,98317.0,0.08267438]
[1733477125411,0.10603154,98318.0,98317.0,0.08557212]
[1733477125653,0.001,98318.0,98317.0,0.08267438]
[1733477125887,0.001,98318.0,98317.0,0.13217212]
[1733477126694,0.00104,98318.0,98317.0,0.13217212]
[1733477128343,4e-05,98323.0,98317.0,0.28318922]
[1733477128550,4e-05,98323.0,98319.0,0.1246]
[1733477128756,4e-05,98323.0,98322.0,0.478013]
[1733477129152,4e-05,98323.0,98322.0,0.48091074]
[1733477129417,4e-05,98345.0,98323.0,0.15]
[1733477129626,0.10507154,98345.0,98344.0,0.1246]
[1733477130196,0.10507154,98345.0,98344.0,0.12749774]
[1733477131024,0.30843654,98345.0,98344.0,0.12749774]
[1733477131225,0.30843654,98345.0,98322.0,0.15]
[1733477131226,0.10507154,98345.0,98336.0,0.0787]
[1733477131603,0.10503154,98344.0,98336.0,0.0787]
[1733477131807,0.10503154,98344.0,98337.0,0.00289774]
[1733477132408,0.10503154,98344.0,98338.0,0.20338]
[1733477132616,0.040685,98343.0,98338.0,0.20338]
[1733477132846,0.040685,98343.0,98339.0,0.00289774]
[1733477134403,0.040685,98343.0,98339.0,0.20627474]
[1733477134975,0.040685,98343.0,98339.0,0.00289774]
[1733477135152,0.040685,98343.0,98339.0,0.002]
[1733477135367,0.040685,98343.0,98340.0,0.00289774]
[1733477136911,0.040685,98343.0,98340.0,0.00689774]
[1733477137184,0.10503154,98344.0,98340.0,0.00689774]
[1733477138183,0.10503154,98344.0,98336.0,0.0787]
[1733477138389,0.10503154,98344.0,98340.0,0.004]
[1733477138858,0.10503154,98344.0,98341.0,0.00288519]
[1733477138991,0.10503154,98344.0,98340.0,0.004]
[1733477139201,0.10503154,98344.0,98342.0,0.00288519]
[1733477139395,0.10503154,98344.0,98340.0,0.002]
[1733477139600,0.10503154,98344.0,98343.0,0.00288519]
[1733477139821,0.10503154,98344.0,98340.0,0.002]
[1733477140399,0.10503154,98344.0,98341.0,0.00288519]
[1733477140641,0.10503154,98344.0,98340.0,0.002]
[1733477140863,0.10503154,98344.0,98342.0,0.00288519]
[1733477141034,0.10503154,98344.0,98340.0,0.002]
[1733477141263,0.10503154,98344.0,98343.0,0.00284519]
[1733477141466,0.10503154,98344.0,98336.0,0.0787]
[1733477141467,0.10503154,98344.0,98342.0,0.001]
[1733477141880,0.10503154,98344.0,98343.0,0.00287205]
[1733477142101,0.203369,98343.0,98336.0,0.0787]
[1733477142320,0.10503154,98342.0,98340.0,0.004]
[1733477142564,0.10503154,98342.0,98336.0,0.07668825]
[1733477142810,0.203373,98341.0,98336.0,0.07668825]
[1733477143068,0.10503154,98340.0,98337.0,0.00269255]
[1733477143524,0.10503154,98340.0,98336.0,0.07868825]
[1733477143765,0.10503154,98340.0,98338.0,0.00269255]
[1733477143981,0.10503154,98340.0,98336.0,0.07868825]
[1733477144202,0.10503154,98340.0,98339.0,0.00269255]
[1733477144408,0.10503154,98340.0,98336.0,0.07868825]
[1733477144608,0.10503154,98340.0,98337.0,0.00269255]
[1733477144780,0.10503154,98340.0,98336.0,0.07863825]
[1733477144982,0.10503154,98340.0,98337.0,0.00269255]
[1733477145406,0.10503154,98340.0,98336.0,0.07663825]
[1733477145638,0.10503154,98340.0,98336.0,0.08063825]
[1733477145840,0.10503154,98340.0,98336.0,0.07863825]
[1733477146062,0.10503154,98340.0,98337.0,0.00269255]
[1733477146261,0.10503154,98340.0,98337.0,0.00469255]
[1733477146502,0.203378,98339.0,98337.0,0.002]
[1733477146712,0.10503154,98339.0,98337.0,0.002]
[1733477147138,0.10503154,98339.0,98338.0,0.00269255]
[1733477148142,0.10503154,98339.0,98337.0,0.002]
[1733477148351,0.10503154,98339.0,98338.0,0.00469255]
[1733477148775,0.10503154,98339.0,98338.0,0.00669255]
[1733477149207,0.01991237,98343.0,98340.0,0.203375]
[1733477149425,0.01991237,98343.0,98342.0,0.203371]
[1733477149782,4e-05,98345.0,98342.0,0.20606355]
[1733477149988,0.10507154,98345.0,98342.0,0.20606355]
[1733477151814,0.10507154,98345.0,98342.0,0.41143455]
[1733477151815,4e-05,98345.0,98342.0,0.41143455]
[1733477152018,4e-05,98345.0,98342.0,0.50260403]
[1733477152222,4e-05,98345.0,98342.0,0.41143455]
[1733477152739,4e-05,98345.0,98342.0,0.00469255]
[1733477153823,0.30839854,98344.0,98342.0,0.00469255]
[1733477154059,0.34924712,98344.0,98342.0,0.00469255]
[1733477154276,0.30839854,98344.0,98342.0,0.00469255]
[1733477154515,0.00944735,98343.0,98342.0,0.002]
[1733477154741,0.11447872,98343.0,98342.0,0.001]
[1733477154974,0.11447872,98343.0,98333.0,0.09116948]
[1733477154975,0.203388,98334.0,98333.0,0.09116948]
[1733477155181,0.10503154,98334.0,98333.0,0.00251695]
[1733477155377,0.203401,98328.0,98325.0,0.0815]
[1733477155647,0.203404,98326.0,98325.0,0.0815]
[1733477155886,0.30843554,98326.0,98320.0,0.09203528]
[1733477156122,0.10503154,98325.0,98320.0,0.09203528]
[1733477157293,0.406818,98324.0,98320.0,0.09203528]
[1733477158446,0.406818,98324.0,98320.0,0.09403528]
[1733477159139,0.406818,98324.0,98320.0,0.09603528]
[1733477159531,0.406818,98324.0,98320.0,0.0048658]
[1733477159950,0.406818,98324.0,98320.0,0.0046658]
[1733477161145,0.203413,98322.0,98320.0,0.0046658]
[1733477161372,0.10503154,98321.0,98320.0,0.0046658]
[1733477162021,0.1144778,98321.0,98320.0,0.0026658]
[1733477162228,0.1144778,98321.0,98320.0,0.0006658]
[1733477162517,0.1144778,98321.0,98320.0,0.0026658]
[1733477162728,0.11447191,98321.0,98320.0,0.0046658]
[1733477162914,0.11447191,98321.0,98320.0,0.0026658]
[1733477163807,0.1869416,98321.0,98320.0,0.0026658]
[1733477164026,0.114467,98321.0,98320.0,0.0026658]
[1733477164299,0.114467,98321.0,98320.0,0.0046658]
[1733477164437,0.10503154,98321.0,98320.0,0.0046658]
[1733477165045,0.11446302,98321.0,98320.0,0.0046658]
[1733477165314,0.10503154,98321.0,98320.0,0.0046658]
[1733477165714,0.10503154,98321.0,98320.0,0.0044658]
[1733477166532,0.1253487,98321.0,98320.0,0.0044658]
[1733477167055,0.1253887,98321.0,98320.0,0.0022658]
[1733477167394,0.1253887,98321.0,98320.0,0.0002658]
[1733477167590,0.1253887,98321.0,98320.0,0.0022658]
[1733477167807,0.20595007,98321.0,98320.0,0.0032658]
[1733477168009,0.40595007,98321.0,98320.0,0.0012658]
[1733477168225,0.41537079,98321.0,98320.0,0.0012658]
[1733477168428,0.41737079,98321.0,98320.0,0.0012658]
[1733477169974,0.48243865,98321.0,98320.0,8e-07]
[1733477170177,0.51553865,98321.0,98320.0,8e-07]
[1733477170608,0.61703865,98321.0,98320.0,8e-07]
[1733477171052,0.50611146,98321.0,98320.0,8e-07]
[1733477171276,0.51552483,98321.0,98320.0,8e-07]
[1733477171483,0.50610552,98321.0,98320.0,8e-07]
[1733477171686,0.51551518,98321.0,98320.0,8e-07]
[1733477173423,0.46735973,98321.0,98320.0,8e-07]
[1733477174111,0.39379836,98321.0,98320.0,8e-07]
[1733477174444,0.39379268,98321.0,98320.0,8e-07]
[1733477174856,0.37347552,98321.0,98320.0,8e-07]
[1733477175165,0.5,98318.0,98317.0,0.00013518]
[1733477175368,0.75863154,98318.0,98317.0,0.00013518]
[1733477175997,0.96163154,98318.0,98317.0,0.00013518]
[1733477176200,1.23753437,98318.0,98317.0,0.00013518]
[1733477176623,1.23513154,98318.0,98317.0,0.00013518]
[1733477177064,1.34002646,98318.0,98317.0,0.00013518]
[1733477177888,1.23513154,98318.0,98317.0,0.00013518]
[1733477180475,1.24453817,98318.0,98317.0,0.00013518]
[1733477180695,1.19453817,98318.0,98317.0,0.00013518]
[1733477181806,1.19453897,98318.0,98317.0,0.00013518]
[1733477182031,0.15,98294.0,98284.0,0.0482]
[1733477182237,0.15,98294.0,98273.0,0.0482]
[1733477182238,0.203498,98281.0,98273.0,0.0482]
[1733477182444,0.30852954,98281.0,98273.0,0.0482]
[1733477182659,0.30852954,98281.0,98250.0,0.0008649]
[1733477182866,0.31793322,98281.0,98263.0,0.0482]
[1733477183068,0.41007594,98281.0,98263.0,0.0482]
[1733477183285,0.66007436,98281.0,98263.0,0.0482]
[1733477183502,0.66007436,98281.0,98280.0,7.4e-07]
[1733477183715,0.6801237,98281.0,98280.0,7.4e-07]
[1733477183922,0.70072647,98281.0,98280.0,7.4e-07]
[1733477184127,0.73786621,98281.0,98280.0,7.4e-07]
[1733477184328,0.73786621,98281.0,98250.0,0.0008649]
[1733477184329,0.703539,98261.0,98250.0,0.0008649]